{"text_format":"2","workbook":"xlsx","n_sheets":5,"sheets":["Сводный","Объект1","Объект2","Объект3","Объект4"],"not_rendered":{"charts":0,"images":0,"macros":0,"external_links":0,"defined_names":5,"comments":0,"pivot_tables":0},"unopened":[],"bounds":{"document_bytes":16777216,"sheet_cells":100000,"run_cost":"one","rows_first":2000,"rows_last":500,"rows_between":2000,"halvings":0,"cell_chars":16384,"cell_head_chars":4096},"cells_cut":0,"cells_raw":0,"read":"whole","date_system":"1900"}

{"sheet":"Сводный","index":0,"n_rows":37,"n_cols":11,"rows_kept":37,"cut":false,"hidden":false,"merged":[[20,2,22,10],[10,2,10,7],[9,2,9,7],[8,2,8,10],[11,2,11,7],[12,2,12,7],[13,2,13,7],[2,2,2,10],[5,2,6,10]]}
[]
[]
[null,null,"Сводный расчет расхода тепловой энергии на отопление объекта"]
[]
[null,null,"Наименование объекта:"]
[null,null,"Жилая застройка в п. Новотроицкое"]
[]
[]
[null,null,"Расходы тепловой энергии на отопление и вентиляцию объектов"]
[null,null,"Наименование объекта",{"$nulls":5},"Расход на ед.","Кол-во","Сумма"]
[null,null,{"$f":"Объект1!C27","v":"Многоквартирный 5ти этажный жилой дом на 20 квартир"},{"$nulls":5},{"$f":"Объект1!J42","v":7.3899054170249348E-2},31,{"$f":"I11*J11","v":2.2908706792777296}]
[null,null,{"$f":"Объект2!C27","v":"Многоквартирный 9ти этажный жилой дом на 54 квартиры"},{"$nulls":5},{"$f":"Объект2!J42","v":0.14463619088564059},7,{"$f":"I12*J12","v":1.0124533361994841}]
[null,null,{"$f":"Объект3!C27","v":"Автосервис на 4 поста"},{"$nulls":5},{"$f":"Объект3!J42","v":0.10301117798796217},1,0.10301117798796217]
[null,null,{"$f":"Объект4!C27","v":"Магазин торговой площадью 1000 м2"},{"$nulls":5},{"$f":"Объект4!J42","v":0.13734823731728288},1,0.13734823731728288]
[{"$nulls":9},"ИТОГО:",{"$f":"SUM(K11:K14)","v":3.5436834307824587}]
[]
[]
[]
[]
[null,null,"Примечание:"]
[null,null,"Ввиду отсутствия разарботанного проекта градостроительной планировки и схем сетей теплоснабжения данный расчет не учитывает потери тепла при транспортировке теплоносителя и на собственные нужды объектов инженерной инфраструктуры. "]
[]
[]
[]
[null,null,"Приложения:"]
[null,null,"Расчет расхода тепла:",null,null,null,{"$f":"C11","v":"Многоквартирный 5ти этажный жилой дом на 20 квартир"}]
[null,null,"Расчет расхода тепла:",null,null,null,{"$f":"C12","v":"Многоквартирный 9ти этажный жилой дом на 54 квартиры"}]
[null,null,"Расчет расхода тепла:",null,null,null,"Автосервис на 4 поста"]
[null,null,"Расчет расхода тепла:",null,null,null,"Магазин торговой площадью 1000 м2"]
[]
[]
[]
[]
[null,null,"Потребность объекта в тепле составляет:",{"$nulls":4},{"$f":"K15","v":3.5436834307824587},"Гкал/ч    или",{"$f":"H34*1.163*1000","v":4121.3038299999998},"кВт"]
[]
[]
[null,null,"Расчет составил:",null,null,null,"Дворцов К.С.",null,null,null,{"$f":"TODAY()","v":"2015-10-27"}]

{"sheet":"Объект1","index":1,"n_rows":45,"n_cols":11,"rows_kept":45,"cut":false,"hidden":false,"merged":[[31,2,31,10],[32,2,32,3],[32,4,32,5],[33,4,33,5],[34,4,34,5],[35,4,35,5],[36,4,36,5],[2,2,2,10],[32,7,32,10],[33,7,33,10],[34,7,34,10],[35,7,35,10],[36,7,36,10],[33,2,33,3],[34,2,34,3],[35,2,35,3],[36,2,36,3],[4,2,14,10],[26,2,27,10]]}
[]
[]
[null,null,"Предварительный расчет расхода тепловой энергии на отопление здания"]
[]
[null,null,"В связи с отменой действия \"методических  указаний  по  определению электроэнергии  и  воды  на  выработку  теплоты  отопительными котельными  коммунальных  теплоэнергетических    предприятий\", ГУП  академия  коммунального  хозяйства  им. К.Д. Памфилова, 2002 г., а так же МДС 41-4.2000 \"Методика определения количеств тепловой энергии и теплоносителя в водяных системах коммунального теплоснабжения\", и отсутствием во вновь введенном в действие Приказе Минстроя России от 17.03.2014 N 99/пр указаний по методике расчета укрупненных показателей нагрузки на отопление зданий, а так же со вступлением в силу СП 50.13330 расчет нагрузки на отопление и вентиляцию зданий произведен на основании требований СП 50.13330.2012 п. 10.1 . Расчет нагрузки производится по \"Теплофикация. Теплопотребление, тепловые сети\" С. Ф. Копьев стр.13 по формуле:"]
{"$rows_empty":12}
[null,null,"где","Q","-","Потребление тепла на отопление и вентиляцию здания"]
[null,null,null,"q","-","Удельная характеристика расхода тепловой энергии на отопление и вентиляцию"]
[null,null,null,"V","-","Строительный объем здания по наружным обмерам"]
[null,null,null,"tв","-","Средняя  расчетная температура внутреннего  воздуха"]
[null,null,null,"tн","-","Температура  наиболее  холодной  пятидневки с  обеспеченностью  0.92"]
[]
[null,null,"Расчет произведен для объекта со следующими характеристиками:"]
[]
[null,null,"Наименование объекта:"]
[null,null,"Многоквартирный 5ти этажный жилой дом на 20 квартир"]
[]
[null,null,"Строительный объем здания:",null,null,null,5700,"м³"]
[null,null,"Этажность здания:",null,null,null,5,"этажей"]
[]
[null,null,"Исходные данные:"]
[null,null,"Величина",null,"Значение",null,"Ед. изм","Источник данных"]
[null,null,"q",null,0.35899999999999999,null,"Вт/(м³·°С)","СП 50.13330.2012 п. 10. 1 Таблица 14 "]
[null,null,"V",null,{"$f":"G29","v":5700},null,"м³","по заданию"]
[null,null,"tв",null,20,null,"°С","ГОСТ 30494-2011 таблица 1"]
[null,null,"tн",null,-22,null,"°С","СП 131.13330.2012 таблица 3.1"]
[]
[null,null,"Тогда:","Q","=",{"$f":"E34","v":0.35899999999999999},{"$f":"E35","v":5700},{"$f":"E36","v":20},{"$f":"E37","v":-22},{"$f":"(E36-E37)*E35*E34","v":85944.599999999991},"Вт"]
[]
[]
[null,null,"Потребность объекта в тепле составляет:",{"$nulls":4},{"$f":"J39/1000","v":85.944599999999994},"кВт        или",{"$f":"H42/1.163/1000","v":7.3899054170249348E-2},"Гкал/ч"]
[]
[]
[null,null,"Расчет составил:",null,null,null,"Дворцов К.С.",null,null,null,{"$f":"TODAY()","v":"2015-10-27"}]

{"sheet":"Объект2","index":2,"n_rows":45,"n_cols":11,"rows_kept":45,"cut":false,"hidden":false,"merged":[[35,2,35,3],[35,4,35,5],[35,7,35,10],[36,2,36,3],[36,4,36,5],[36,7,36,10],[33,2,33,3],[33,4,33,5],[33,7,33,10],[34,2,34,3],[34,4,34,5],[34,7,34,10],[2,2,2,10],[4,2,14,10],[26,2,27,10],[31,2,31,10],[32,2,32,3],[32,4,32,5],[32,7,32,10]]}
[]
[]
[null,null,"Предварительный расчет расхода тепловой энергии на отопление здания"]
[]
[null,null,"В связи с отменой действия \"методических  указаний  по  определению электроэнергии  и  воды  на  выработку  теплоты  отопительными котельными  коммунальных  теплоэнергетических    предприятий\", ГУП  академия  коммунального  хозяйства  им. К.Д. Памфилова, 2002 г., а так же МДС 41-4.2000 \"Методика определения количеств тепловой энергии и теплоносителя в водяных системах коммунального теплоснабжения\", и отсутствием во вновь введенном в действие Приказе Минстроя России от 17.03.2014 N 99/пр указаний по методике расчета укрупненных показателей нагрузки на отопление зданий, а так же со вступлением в силу СП 50.13330 расчет нагрузки на отопление и вентиляцию зданий произведен на основании требований СП 50.13330.2012 п. 10.1 . Расчет нагрузки производится по \"Теплофикация. Теплопотребление, тепловые сети\" С. Ф. Копьев стр.13 по формуле:"]
{"$rows_empty":12}
[null,null,"где","Q","-","Потребление тепла на отопление и вентиляцию здания"]
[null,null,null,"q","-","Удельная характеристика расхода тепловой энергии на отопление и вентиляцию"]
[null,null,null,"V","-","Строительный объем здания по наружным обмерам"]
[null,null,null,"tв","-","Средняя  расчетная температура внутреннего  воздуха"]
[null,null,null,"tн","-","Температура  наиболее  холодной  пятидневки с  обеспеченностью  0.92"]
[]
[null,null,"Расчет произведен для объекта со следующими характеристиками:"]
[]
[null,null,"Наименование объекта:"]
[null,null,"Многоквартирный 9ти этажный жилой дом на 54 квартиры"]
[]
[null,null,"Строительный объем здания:",null,null,null,12555,"м³"]
[null,null,"Этажность здания:",null,null,null,9,"этажей"]
[]
[null,null,"Исходные данные:"]
[null,null,"Величина",null,"Значение",null,"Ед. изм","Источник данных"]
[null,null,"q",null,0.31900000000000001,null,"Вт/(м³·°С)","СП 50.13330.2012 п. 10. 1 Таблица 14 "]
[null,null,"V",null,{"$f":"G29","v":12555},null,"м³","по заданию"]
[null,null,"tв",null,20,null,"°С","ГОСТ 30494-2011 таблица 1"]
[null,null,"tн",null,-22,null,"°С","СП 131.13330.2012 таблица 3.1"]
[]
[null,null,"Тогда:","Q","=",{"$f":"E34","v":0.31900000000000001},{"$f":"E35","v":12555},{"$f":"E36","v":20},{"$f":"E37","v":-22},{"$f":"(E36-E37)*E35*E34","v":168211.89},"Вт"]
[]
[]
[null,null,"Потребность объекта в тепле составляет:",{"$nulls":4},{"$f":"J39/1000","v":168.21189000000001},"кВт        или",{"$f":"H42/1.163/1000","v":0.14463619088564059},"Гкал/ч"]
[]
[]
[null,null,"Расчет составил:",null,null,null,"Дворцов К.С.",null,null,null,{"$f":"TODAY()","v":"2015-10-27"}]

{"sheet":"Объект3","index":3,"n_rows":45,"n_cols":11,"rows_kept":45,"cut":false,"hidden":false,"merged":[[35,2,35,3],[35,4,35,5],[35,7,35,10],[36,2,36,3],[36,4,36,5],[36,7,36,10],[33,2,33,3],[33,4,33,5],[33,7,33,10],[34,2,34,3],[34,4,34,5],[34,7,34,10],[2,2,2,10],[4,2,14,10],[26,2,27,10],[31,2,31,10],[32,2,32,3],[32,4,32,5],[32,7,32,10]]}
[]
[]
[null,null,"Предварительный расчет расхода тепловой энергии на отопление здания"]
[]
[null,null,"В связи с отменой действия \"методических  указаний  по  определению электроэнергии  и  воды  на  выработку  теплоты  отопительными котельными  коммунальных  теплоэнергетических    предприятий\", ГУП  академия  коммунального  хозяйства  им. К.Д. Памфилова, 2002 г., а так же МДС 41-4.2000 \"Методика определения количеств тепловой энергии и теплоносителя в водяных системах коммунального теплоснабжения\", и отсутствием во вновь введенном в действие Приказе Минстроя России от 17.03.2014 N 99/пр указаний по методике расчета укрупненных показателей нагрузки на отопление зданий, а так же со вступлением в силу СП 50.13330 расчет нагрузки на отопление и вентиляцию зданий произведен на основании требований СП 50.13330.2012 п. 10.1 . Расчет нагрузки производится по \"Теплофикация. Теплопотребление, тепловые сети\" С. Ф. Копьев стр.13 по формуле:"]
{"$rows_empty":12}
[null,null,"где","Q","-","Потребление тепла на отопление и вентиляцию здания"]
[null,null,null,"q","-","Удельная характеристика расхода тепловой энергии на отопление и вентиляцию"]
[null,null,null,"V","-","Строительный объем здания по наружным обмерам"]
[null,null,null,"tв","-","Средняя  расчетная температура внутреннего  воздуха"]
[null,null,null,"tн","-","Температура  наиболее  холодной  пятидневки с  обеспеченностью  0.92"]
[]
[null,null,"Расчет произведен для объекта со следующими характеристиками:"]
[]
[null,null,"Наименование объекта:"]
[null,null,"Автосервис на 4 поста"]
[]
[null,null,"Строительный объем здания:",null,null,null,6000,"м³"]
[null,null,"Этажность здания:",null,null,null,1,"этажей"]
[]
[null,null,"Исходные данные:"]
[null,null,"Величина",null,"Значение",null,"Ед. изм","Источник данных"]
[null,null,"q",null,0.48699999999999999,null,"Вт/(м³·°С)","СП 50.13330.2012 п. 10. 1 Таблица 14 "]
[null,null,"V",null,{"$f":"G29","v":6000},null,"м³","по заданию"]
[null,null,"tв",null,19,null,"°С","ГОСТ 30494-2011 таблица 1"]
[null,null,"tн",null,-22,null,"°С","СП 131.13330.2012 таблица 3.1"]
[]
[null,null,"Тогда:","Q","=",{"$f":"E34","v":0.48699999999999999},{"$f":"E35","v":6000},{"$f":"E36","v":19},{"$f":"E37","v":-22},{"$f":"(E36-E37)*E35*E34","v":119802},"Вт"]
[]
[]
[null,null,"Потребность объекта в тепле составляет:",{"$nulls":4},{"$f":"J39/1000","v":119.80200000000001},"кВт        или",{"$f":"H42/1.163/1000","v":0.10301117798796217},"Гкал/ч"]
[]
[]
[null,null,"Расчет составил:",null,null,null,"Дворцов К.С.",null,null,null,{"$f":"TODAY()","v":"2015-10-27"}]

{"sheet":"Объект4","index":4,"n_rows":45,"n_cols":11,"rows_kept":45,"cut":false,"hidden":false,"merged":[[35,2,35,3],[35,4,35,5],[35,7,35,10],[36,2,36,3],[36,4,36,5],[36,7,36,10],[33,2,33,3],[33,4,33,5],[33,7,33,10],[34,2,34,3],[34,4,34,5],[34,7,34,10],[2,2,2,10],[4,2,14,10],[26,2,27,10],[31,2,31,10],[32,2,32,3],[32,4,32,5],[32,7,32,10]]}
[]
[]
[null,null,"Предварительный расчет расхода тепловой энергии на отопление здания"]
[]
[null,null,"В связи с отменой действия \"методических  указаний  по  определению электроэнергии  и  воды  на  выработку  теплоты  отопительными котельными  коммунальных  теплоэнергетических    предприятий\", ГУП  академия  коммунального  хозяйства  им. К.Д. Памфилова, 2002 г., а так же МДС 41-4.2000 \"Методика определения количеств тепловой энергии и теплоносителя в водяных системах коммунального теплоснабжения\", и отсутствием во вновь введенном в действие Приказе Минстроя России от 17.03.2014 N 99/пр указаний по методике расчета укрупненных показателей нагрузки на отопление зданий, а так же со вступлением в силу СП 50.13330 расчет нагрузки на отопление и вентиляцию зданий произведен на основании требований СП 50.13330.2012 п. 10.1 . Расчет нагрузки производится по \"Теплофикация. Теплопотребление, тепловые сети\" С. Ф. Копьев стр.13 по формуле:"]
{"$rows_empty":12}
[null,null,"где","Q","-","Потребление тепла на отопление и вентиляцию здания"]
[null,null,null,"q","-","Удельная характеристика расхода тепловой энергии на отопление и вентиляцию"]
[null,null,null,"V","-","Строительный объем здания по наружным обмерам"]
[null,null,null,"tв","-","Средняя  расчетная температура внутреннего  воздуха"]
[null,null,null,"tн","-","Температура  наиболее  холодной  пятидневки с  обеспеченностью  0.92"]
[]
[null,null,"Расчет произведен для объекта со следующими характеристиками:"]
[]
[null,null,"Наименование объекта:"]
[null,null,"Магазин торговой площадью 1000 м2"]
[]
[null,null,"Строительный объем здания:",null,null,null,8000,"м³"]
[null,null,"Этажность здания:",null,null,null,1,"этажей"]
[]
[null,null,"Исходные данные:"]
[null,null,"Величина",null,"Значение",null,"Ед. изм","Источник данных"]
[null,null,"q",null,0.48699999999999999,null,"Вт/(м³·°С)","СП 50.13330.2012 п. 10. 1 Таблица 14 "]
[null,null,"V",null,{"$f":"G29","v":8000},null,"м³","по заданию"]
[null,null,"tв",null,19,null,"°С","ГОСТ 30494-2011 таблица 1"]
[null,null,"tн",null,-22,null,"°С","СП 131.13330.2012 таблица 3.1"]
[]
[null,null,"Тогда:","Q","=",{"$f":"E34","v":0.48699999999999999},{"$f":"E35","v":8000},{"$f":"E36","v":19},{"$f":"E37","v":-22},{"$f":"(E36-E37)*E35*E34","v":159736},"Вт"]
[]
[]
[null,null,"Потребность объекта в тепле составляет:",{"$nulls":4},{"$f":"J39/1000","v":159.73599999999999},"кВт        или",{"$f":"H42/1.163/1000","v":0.13734823731728288},"Гкал/ч"]
[]
[]
[null,null,"Расчет составил:",null,null,null,"Дворцов К.С.",null,null,null,{"$f":"TODAY()","v":"2015-10-27"}]